fUST/lending_fUST_20260503
["ID","MTS","AMOUNT","RATE_DAILY","PERIOD"]
[421480399,1777743038000,-1000.0,0.00013699,2]
[421480400,1777743038000,-6632.26407777,0.000137,2]
[421480397,1777743038000,-1000.0,0.00013699,2]
[421480395,1777743038000,-1647085.78019226,0.000136,2]
[421480396,1777743038000,-82408.10297253,0.000136,2]
[421480407,1777743038000,-14452.54512963,0.000137,2]
[421480401,1777743038000,-912.24701616,0.000137,2]
[421480408,1777743038000,-33363.0,0.000137,2]
[421480412,1777743038000,-500.0,0.00013776,2]
[421480415,1777743038000,-500.0,0.00013904,2]
[421480426,1777743038000,-587.05082939,0.0001424,2]
[421480425,1777743038000,-500.0,0.00014147,2]
[421480424,1777743038000,-2230.315306,0.00014139,2]
[421480421,1777743038000,-1087.545528,0.00014051,2]
[421480414,1777743038000,-500.0,0.00013873,2]
[421480423,1777743038000,-293.68599853,0.00014097,2]
[421480420,1777743038000,-1209.7801911,0.00014051,2]
[421480422,1777743038000,-179.063687,0.00014051,2]
[421480419,1777743038000,-7377.1604701,0.00014051,2]
[421480418,1777743038000,-779.393094,0.00014051,2]
[421480416,1777743038000,-151.0,0.00014027,2]
[421480411,1777743038000,-823.0,0.0001376,2]
[421480409,1777743038000,-318.858,0.00013703,2]
[421480410,1777743038000,-157.62,0.00013708,2]
[421480417,1777743038000,-325.612506,0.00014027,2]
[421480430,1777743039000,-1411.0,0.00014336,2]
[421480428,1777743039000,-300.0,0.00014279,2]
[421480429,1777743039000,-600.0,0.00014332,2]
[421480427,1777743039000,-587.05082939,0.0001427,2]
[421480432,1777743039000,-646.0,0.00014336,2]
[421480436,1777743039000,-2312.83697232,0.00014687,2]
[421480434,1777743039000,-7085.34682495,0.00014413,2]
[421480435,1777743039000,-587.05082939,0.00014678,2]
[421480433,1777743039000,-208.0,0.00014356,3]
[421480437,1777743039000,-1288.02494175,0.00014779,2]
[421480431,1777743039000,-2213.0,0.00014336,2]
[421480452,1777743041000,-28857.39054683,0.00014847,3]
[421480451,1777743041000,-160.0,0.00014838,3]
[421480448,1777743041000,-2269.00688007,0.00014779,2]
[421480450,1777743041000,-23777.22502486,0.00014838,3]
[421480449,1777743041000,-14222.77497514,0.00014838,3]
[421480457,1777743043000,-3097.4470297,0.00013499,2]
[421480458,1777743044000,1601.22177545,0.0001,2]
[421480466,1777743046000,1088.78693591,7.6e-05,2]
[421480467,1777743046000,793.32332806,7.6e-05,2]
[421480471,1777743047000,-15350.58612013,0.00013499,2]
[421480470,1777743047000,-419.91550361,0.0001,2]
[421480528,1777744232000,-160.35178371,9.704e-05,2]
[421480526,1777744232000,-5000.0,9.582e-05,2]
[421480613,1777744238000,-1285.10008273,0.0001,2]
[421480611,1777744238000,-300.0,9.999e-05,2]
[421480612,1777744238000,-439.69514412,0.0001,2]
[421480610,1777744238000,-40.30485588,9.704e-05,2]
[421480650,1777744241000,-341.39731717,0.0001,2]
[421480649,1777744241000,-657.05621048,0.0001,2]
[421480653,1777744241000,-300.0,0.00010199,2]
[421480652,1777744241000,-300.0,0.00010199,2]
[421480654,1777744241000,-256.92647235,0.00010199,2]
[421480651,1777744241000,-300.0,0.00010199,2]
[421480671,1777744243000,-176.11097542,0.00010199,2]
[421480670,1777744243000,-300.0,0.00010199,2]
[421480668,1777744243000,-300.0,0.00010199,2]
[421480669,1777744243000,-300.0,0.00010199,2]
[421480666,1777744243000,-43.07352765,0.00010199,2]
[421480667,1777744243000,-300.0,0.00010199,2]
[421480762,1777744247000,-720.0,0.00011442,2]
[421480761,1777744247000,-300.0,0.00010999,2]
[421480757,1777744247000,-300.0,0.00010199,2]
[421480758,1777744247000,-600.0,0.00010402,2]
[421480743,1777744247000,-300.0,0.00010199,2]
[421480745,1777744247000,-300.0,0.00010199,2]
[421480741,1777744247000,-123.88902458,0.00010199,2]
[421480747,1777744247000,-300.0,0.00010199,2]
[421480749,1777744247000,-233.14097242,0.00010199,2]
[421480765,1777744247000,-2213.0,0.00011804,2]
[421480755,1777744247000,-300.0,0.00010199,2]
[421480760,1777744247000,-270.92202488,0.000105,2]
[421480764,1777744247000,-646.0,0.00011804,2]
[421480763,1777744247000,-236.77483471,0.00011704,2]
[421480766,1777744247000,-1411.0,0.00011804,2]
[421480768,1777744247000,-740.0,0.00011804,2]
[421480769,1777744247000,-185.0,0.00011804,2]
[421480767,1777744247000,-442.0,0.00011804,2]
[421480770,1777744247000,-14886.79816656,0.00012,2]
[421480753,1777744247000,-66.85902758,0.00010199,2]
[421480889,1777745432000,-180.0,0.00012692,2]
[421480883,1777745432000,-446.78372052,0.00012628,2]
[421480884,1777745432000,-151.0,0.00012692,2]
[421480885,1777745432000,-151.0,0.00012692,2]
[421480886,1777745432000,-151.0,0.00012692,2]
[421480890,1777745432000,-151.0,0.00012692,2]
[421480882,1777745432000,-255.086,0.00012446,2]
[421480888,1777745432000,-151.0,0.00012692,2]
[421480880,1777745432000,-784.65,0.00012329,2]
[421480887,1777745432000,-151.0,0.00012692,2]
[421480894,1777745432000,-151.0,0.00012692,2]
[421480896,1777745432000,-151.0,0.00012692,2]
[421480904,1777745432000,-151.0,0.00012692,2]
[421480905,1777745432000,-80.79249009,0.00012692,2]
[421480895,1777745432000,-151.0,0.00012692,2]
[421480897,1777745432000,-138.05332847,0.00012692,2]
[421480906,1777745432000,-70.20750991,0.00012692,2]
[421480900,1777745432000,-151.0,0.00012692,2]
[421480899,1777745432000,-151.0,0.00012692,2]
[421480898,1777745432000,-12.94667153,0.00012692,2]
[421480903,1777745432000,-151.0,0.00012692,2]
[421480902,1777745432000,-151.0,0.00012692,2]
[421480881,1777745432000,-281.4972469,0.0001241,2]
[421480893,1777745432000,-151.0,0.00012692,2]
[421480891,1777745432000,-151.0,0.00012692,2]
[421480855,1777745432000,-574.0,0.00010964,2]
[421480870,1777745432000,-440.41335325,0.00011903,2]
[421480908,1777745432000,-275.73753066,0.00012694,2]
[421480857,1777745432000,-300.0,0.00011502,2]
[421480867,1777745432000,-4504.94475404,0.00011903,2]
[421480856,1777745432000,-191.9080101,0.00011075,2]
[421480862,1777745432000,-15119.29882821,0.00011703,2]
[421480858,1777745432000,-1928.16893876,0.00011503,2]
[421480860,1777745432000,-1321.5092979,0.00011603,2]
[421480861,1777745432000,-12134.53410503,0.00011603,2]
[421480863,1777745432000,-446.78372054,0.00011799,2]
[421480859,1777745432000,-5008.00948635,0.00011503,2]
[421480866,1777745432000,-646.0,0.00011804,2]
[421480892,1777745432000,-151.0,0.00012692,2]
[421480864,1777745432000,-16782.55425356,0.00011803,2]
[421480869,1777745432000,-3300.41824811,0.00011903,2]
[421480879,1777745432000,-156.93,0.00012329,2]
[421480873,1777745432000,-14001.16214283,0.00012,2]
[421480872,1777745432000,-6061.36528908,0.00011903,2]
[421480876,1777745432000,-271.17,0.00012329,2]
[421480868,1777745432000,-2337.95406576,0.00011903,2]
[421480877,1777745432000,-225.97,0.00012329,2]
[421480875,1777745432000,-325.4,0.00012329,2]
[421480871,1777745432000,-470.35035253,0.00011903,2]
[421480878,1777745432000,-188.31,0.00012329,2]
[421480874,1777745432000,-191.0,0.0001211,3]
[421480865,1777745432000,-1411.0,0.00011804,2]
[421480919,1777745432000,-5472.16108458,0.000129,2]
[421480901,1777745432000,-151.0,0.00012692,2]
[421480907,1777745432000,-1259.3765548,0.00012694,2]
[421480938,1777745432000,-157.61,0.00013708,2]
[421480935,1777745432000,-502.2837891,0.00013698,2]
[421480939,1777745432000,-5472.16108456,0.00014044,2]
[421480940,1777745432000,-172.43,0.00014161,2]
[421480941,1777745432000,-2150.738,0.00014237,2]
[421480942,1777745432000,-446.78372052,0.00014286,2]
[421480946,1777745432000,-8306.02754068,0.00014703,3]
[421480947,1777745432000,-38000.0,0.00014703,3]
[421480957,1777745432000,-729.44096609,0.000149,2]
[421480958,1777745432000,-10145.03252764,0.00015,2]
[421480959,1777745432000,-28411.01021118,0.00015,2]
[421480937,1777745432000,-1000.0,0.00013699,2]
[421480949,1777745432000,-9142.60945317,0.00014703,3]
[421480953,1777745432000,-1411.0,0.00014804,2]
[421480955,1777745432000,-500.0,0.00014847,2]
[421480956,1777745432000,-729.44096611,0.000149,2]
[421480952,1777745432000,-2230.315306,0.00014785,2]
[421480950,1777745432000,-160.0,0.00014703,3]
[421480951,1777745432000,-500.0,0.00014779,2]
[421480961,1777745432000,-260.99489374,0.00015075,2]
[421480960,1777745432000,-171.813094,0.00015068,2]
[421480963,1777745432000,-446.78372052,0.00015115,2]
[421480962,1777745432000,-160.0,0.00015084,5]
[421480918,1777745432000,-831.0,0.00012893,2]
[421480954,1777745432000,-500.0,0.00014847,2]
[421480944,1777745432000,-720.0,0.0001436,2]
[421480948,1777745432000,-643.06900729,0.00014703,3]
[421480945,1777745432000,-38000.0,0.00014703,3]
[421480909,1777745432000,-195.66804706,0.00012694,2]
[421480936,1777745432000,-1000.0,0.00013699,2]
[421480910,1777745432000,-1259.3765548,0.00012694,2]
[421480912,1777745432000,-1259.3765548,0.00012694,2]
[421480911,1777745432000,-1259.3765548,0.00012694,2]
[421480914,1777745432000,-1259.3765548,0.00012694,2]
[421480913,1777745432000,-1259.3765548,0.00012694,2]
[421480915,1777745432000,-1259.3765548,0.00012694,2]
[421480916,1777745432000,-1259.3765548,0.00012694,2]
[421480921,1777745432000,-455.318002,0.00013029,2]
[421480932,1777745432000,-500.0,0.00013698,2]
[421480931,1777745432000,-500.0,0.00013698,2]
[421480920,1777745432000,-5472.16108456,0.000129,2]
[421480917,1777745432000,-1259.3765548,0.00012694,2]
[421480926,1777745432000,-160.0,0.00013092,2]
[421480933,1777745432000,-500.0,0.00013698,2]
[421480934,1777745432000,-500.0,0.00013698,2]
[421480929,1777745432000,-584.5448205,0.00013585,2]
[421480930,1777745432000,-503.52982088,0.00013698,2]
[421480925,1777745432000,-160.0,0.00013092,2]
[421480943,1777745432000,-176.0,0.00014301,3]
[421480927,1777745432000,-175.0,0.00013205,3]
[421480923,1777745432000,-226.45145192,0.00013075,2]
[421480922,1777745432000,-600.0,0.00013055,2]
[421480924,1777745432000,-160.0,0.00013092,2]
[421480928,1777745432000,-446.78372052,0.00013457,2]
[421481008,1777745433000,-10145.03252764,0.000161,2]
[421481003,1777745433000,-902.88948177,0.00016072,2]
[421481007,1777745433000,-1198.49313843,0.000161,2]
[421481000,1777745433000,-3000.0,0.0001606,2]
[421480998,1777745433000,-150.21682077,0.00016055,2]
[421480999,1777745433000,-5000.0,0.0001606,2]
[421481009,1777745433000,-3000.0,0.000161,2]
[421480994,1777745433000,-3000.0,0.0001603,2]
[421480995,1777745433000,-3000.0,0.0001604,2]
[421480991,1777745433000,-3000.0,0.00016,2]
[421481004,1777745433000,-3000.0,0.0001608,2]
[421481010,1777745433000,-3000.0,0.0001611,2]
[421481002,1777745433000,-902.88948177,0.00016071,2]
[421481013,1777745433000,-3000.0,0.0001612,2]
[421481005,1777745433000,-3000.0,0.0001609,2]
[421481006,1777745433000,-160.0,0.00016092,3]
[421481017,1777745433000,-902.88948177,0.00016134,2]
[421481012,1777745433000,-902.88948177,0.00016119,2]
[421481022,1777745433000,-3000.0,0.0001617,2]
[421481018,1777745433000,-3000.0,0.0001614,2]
[421481014,1777745433000,-902.88948177,0.00016127,2]
[421481023,1777745433000,-3000.0,0.0001618,2]
[421481016,1777745433000,-729.44096609,0.0001613,2]
[421481011,1777745433000,-902.88948177,0.00016115,2]
[421481020,1777745433000,-3000.0,0.0001616,2]
[421480985,1777745433000,-1198.49313843,0.000159,2]
[421481001,1777745433000,-3000.0,0.0001607,2]
[421480990,1777745433000,-160.0,0.00016,3]
[421481015,1777745433000,-3000.0,0.0001613,2]
[421480993,1777745433000,-3000.0,0.0001602,2]
[421480972,1777745433000,-10145.03252764,0.000156,2]
[421480971,1777745433000,-1198.49313843,0.000156,2]
[421480969,1777745433000,-10145.03252764,0.000155,2]
[421480968,1777745433000,-178.0,0.00015397,3]
[421480964,1777745433000,-10145.03252764,0.000152,2]
[421480965,1777745433000,-5472.16108456,0.00015215,2]
[421480966,1777745433000,-10145.03252764,0.000153,2]
[421480967,1777745433000,-2312.83697232,0.00015333,2]
[421480970,1777745433000,-1760.44200403,0.00015546,2]
[421480978,1777745433000,-536.122,0.00015863,2]
[421480979,1777745433000,-500.0,0.00015863,2]
[421480980,1777745433000,-500.0,0.00015863,2]
[421480981,1777745433000,-160.0,0.00015866,2]
[421480983,1777745433000,-831.836108,0.00015866,2]
[421480984,1777745433000,-2398.4119403,0.00015881,2]
[421480982,1777745433000,-495.918054,0.00015866,2]
[421480974,1777745433000,-1198.49313843,0.000158,2]
[421480973,1777745433000,-864.0,0.00015797,2]
[421480977,1777745433000,-164.092299,0.00015847,7]
[421480975,1777745433000,-10145.03252764,0.000158,2]
[421480976,1777745433000,-291.24637229,0.00015825,2]
[421480997,1777745433000,-3000.0,0.0001605,2]
[421480988,1777745433000,-160.0,0.000159,4]
[421480989,1777745433000,-200.0,0.00016,7]
[421480987,1777745433000,-151.0,0.000159,2]
[421480986,1777745433000,-10145.03252764,0.000159,2]
[421480996,1777745433000,-902.88948177,0.00016042,2]
[421480992,1777745433000,-3000.0,0.0001601,2]
[421481019,1777745433000,-3000.0,0.0001615,2]
[421481079,1777745433000,-300.0,0.00016438,2]
[421481024,1777745433000,-3000.0,0.0001619,2]
[421481058,1777745433000,-160.0,0.000164,3]
[421481053,1777745433000,-584.5448205,0.0001636,2]
[421481057,1777745433000,-3000.0,0.0001639,2]
[421481061,1777745433000,-1259.3765548,0.00012694,2]
[421481060,1777745433000,-3992.67818282,0.000164,2]
[421481062,1777745433000,-2860.2481555,0.000164,2]
[421481067,1777745433000,-902.88948177,0.00016427,2]
[421481065,1777745433000,-3000.0,0.0001641,2]
[421481063,1777745433000,-3000.0,0.000164,2]
[421481068,1777745433000,-1919.05554073,0.00016429,2]
[421481069,1777745433000,-3000.0,0.0001643,2]
[421481066,1777745433000,-3000.0,0.0001642,2]
[421481064,1777745433000,-902.88948177,0.00016403,2]
[421481073,1777745433000,-1508.0,0.00016438,2]
[421481078,1777745433000,-300.0,0.00016438,2]
[421481072,1777745433000,-151.0,0.00016438,2]
[421481071,1777745433000,-151.0,0.00016438,2]
[421481075,1777745433000,-8982.44,0.00016438,2]
[421481081,1777745433000,-223.77013607,0.00016438,2]
[421481070,1777745433000,-1226.99117546,0.00016438,2]
[421481076,1777745433000,-675.52,0.00016438,2]
[421481074,1777745433000,-8982.44,0.00016438,2]
[421481077,1777745433000,-675.52,0.00016438,2]
[421481080,1777745433000,-300.0,0.00016438,2]
[421481083,1777745433000,-300.0,0.00016438,2]
[421481082,1777745433000,-76.22986393,0.00016438,2]
[421481021,1777745433000,-902.88948177,0.00016162,2]
[421481048,1777745433000,-902.88948177,0.00016349,2]
[421481056,1777745433000,-5472.16108456,0.00016387,2]
[421481055,1777745433000,-3000.0,0.0001638,2]
[421481054,1777745433000,-3000.0,0.0001637,2]
[421481025,1777745433000,-1198.49313843,0.000162,2]
[421481026,1777745433000,-10145.03252764,0.000162,2]
[421481027,1777745433000,-3000.0,0.000162,2]
[421481028,1777745433000,-151.0,0.000162,2]
[421481029,1777745433000,-3000.0,0.0001621,2]
[421481030,1777745433000,-902.88948177,0.00016212,2]
[421481034,1777745433000,-902.88948177,0.00016248,2]
[421481033,1777745433000,-3000.0,0.0001624,2]
[421481031,1777745433000,-3000.0,0.0001622,2]
[421481032,1777745433000,-3000.0,0.0001623,2]
[421481059,1777745433000,-3292.10618932,0.000164,2]
[421481036,1777745433000,-3000.0,0.0001626,2]
[421481037,1777745433000,-902.88948177,0.00016263,2]
[421481039,1777745433000,-3000.0,0.0001628,2]
[421481035,1777745433000,-3000.0,0.0001625,2]
[421481038,1777745433000,-3000.0,0.0001627,2]
[421481043,1777745433000,-3000.0,0.0001631,2]
[421481040,1777745433000,-3000.0,0.0001629,2]
[421481041,1777745433000,-3000.0,0.000163,2]
[421481045,1777745433000,-902.88948177,0.00016328,2]
[421481042,1777745433000,-902.88948177,0.00016304,2]
[421481044,1777745433000,-3000.0,0.0001632,2]
[421481047,1777745433000,-3000.0,0.0001634,2]
[421481050,1777745433000,-3000.0,0.0001635,2]
[421481051,1777745433000,-902.88948177,0.00016354,2]
[421481046,1777745433000,-3000.0,0.0001633,2]
[421481049,1777745433000,-902.88948177,0.00016349,2]
[421481052,1777745433000,-3000.0,0.0001636,2]
[421481085,1777745434000,-300.0,0.00016438,2]
[421481090,1777745434000,-300.0,0.00016438,2]
[421481084,1777745434000,-300.0,0.00016438,2]
[421481088,1777745434000,-300.0,0.00016438,2]
[421481093,1777745434000,-300.0,0.00016438,2]
[421481092,1777745434000,-300.0,0.00016438,2]
[421481091,1777745434000,-300.0,0.00016438,2]
[421481094,1777745434000,-300.0,0.00016438,2]
[421481086,1777745434000,-300.0,0.00016438,2]
[421481095,1777745434000,-300.0,0.00016438,2]
[421481089,1777745434000,-300.0,0.00016438,2]
[421481096,1777745434000,-300.0,0.00016438,2]
[421481101,1777745434000,-300.0,0.00016438,2]
[421481102,1777745434000,-300.0,0.00016438,2]
[421481087,1777745434000,-300.0,0.00016438,2]
[421481099,1777745434000,-9.38167009,0.00016438,2]
[421481098,1777745434000,-290.61832991,0.00016438,2]
[421481103,1777745434000,-4.26509369,0.00016438,2]
[421481100,1777745434000,-300.0,0.00016438,2]
[421481097,1777745434000,-300.0,0.00016438,2]
[421481168,1777745438000,-1259.3765548,0.00012694,2]
[421481166,1777745438000,-1259.3765548,0.00012694,2]
[421481173,1777745438000,-1259.3765548,0.00012694,2]
[421481162,1777745438000,-5000.0,0.00010854,2]
[421481164,1777745438000,-1259.3765548,0.00012694,2]
[421481169,1777745438000,-1259.3765548,0.00012694,2]
[421481175,1777745438000,-1259.3765548,0.00012694,2]
[421481177,1777745438000,-1259.3765548,0.00012694,2]
[421481179,1777745438000,-1259.3765548,0.00012694,2]
[421481181,1777745438000,-1259.3765548,0.00012694,2]
[421481171,1777745438000,-1259.3765548,0.00012694,2]
[421481183,1777745438000,-1173.62800269,0.00015546,2]
[421481185,1777745438000,-3764.35644931,0.00015863,2]
[421481447,1777745443000,-202.0,0.00015468,2]
[421481446,1777745443000,-442.0,0.00012468,2]
[421481456,1777745446000,-2013.3541897,0.00013585,2]
[421481457,1777745446000,-240.0,0.00015468,2]
[421481458,1777745446000,-120.8778103,0.00015863,2]
[421481529,1777746638000,-151.0,0.00011995,2]
[421481531,1777746638000,-151.0,0.00011995,2]
[421481522,1777746638000,-151.0,0.00011995,2]
[421481532,1777746638000,-151.0,0.00011995,2]
[421481520,1777746638000,-180.0,0.00011995,2]
[421481526,1777746638000,-151.0,0.00011995,2]
[421481523,1777746638000,-151.0,0.00011995,2]
[421481527,1777746638000,-151.0,0.00011995,2]
[421481525,1777746638000,-151.0,0.00011995,2]
[421481530,1777746638000,-151.0,0.00011995,2]
[421481528,1777746638000,-151.0,0.00011995,2]
[421481521,1777746638000,-151.0,0.00011995,2]
[421481524,1777746638000,-151.0,0.00011995,2]
[421481517,1777746638000,-151.0,0.00011995,2]
[421481505,1777746638000,-1428.24,0.00011349,2]
[421481515,1777746638000,-1200.0,0.00011781,2]
[421481511,1777746638000,-300.0,0.00011781,2]
[421481514,1777746638000,-300.0,0.00011781,2]
[421481512,1777746638000,-300.0,0.00011781,2]
[421481516,1777746638000,-300.0,0.00011781,2]
[421481509,1777746638000,-21.57511014,0.00011622,2]
[421481510,1777746638000,-160.28581284,0.00011622,2]
[421481507,1777746638000,-580.0,0.00011349,2]
[421481518,1777746638000,-151.0,0.00011995,2]
[421481519,1777746638000,-151.0,0.00011995,2]
[421481508,1777746638000,-467.53116002,0.00011464,2]
[421481506,1777746638000,-1127.92201003,0.00011349,2]
[421481504,1777746638000,-2443.83798997,0.00011349,2]
[421481534,1777746638000,-151.0,0.00011995,2]
[421481513,1777746638000,-300.0,0.00011781,2]
[421481544,1777746638000,-442.0,0.00012468,2]
[421481553,1777746638000,-160.0,0.00013119,2]
[421481540,1777746638000,-2213.0,0.00012468,2]
[421481545,1777746638000,-254.0,0.00012548,3]
[421481566,1777746638000,-152.0,0.00013885,7]
[421481564,1777746638000,-314.0,0.00013842,2]
[421481565,1777746638000,-152.0,0.00013885,7]
[421481562,1777746638000,-314.0,0.00013842,2]
[421481561,1777746638000,-1000.0,0.00013699,2]
[421481558,1777746638000,-156.0,0.00013644,3]
[421481560,1777746638000,-1000.0,0.00013699,2]
[421481557,1777746638000,-214.59588912,0.00013623,2]
[421481559,1777746638000,-1048.35,0.00013698,2]
[421481555,1777746638000,-151.39,0.00013333,3]
[421481556,1777746638000,-500.0,0.00013622,2]
[421481551,1777746638000,-160.0,0.00013119,2]
[421481554,1777746638000,-229.59745358,0.00013233,14]
[421481563,1777746638000,-314.0,0.00013842,2]
[421481552,1777746638000,-160.0,0.00013119,2]
[421481541,1777746638000,-1411.0,0.00012468,2]
[421481550,1777746638000,-600.0,0.00012969,2]
[421481537,1777746638000,-151.0,0.00011995,2]
[421481538,1777746638000,-1105.3524305,0.000123,2]
[421481542,1777746638000,-740.0,0.00012468,2]
[421481535,1777746638000,-151.0,0.00011995,2]
[421481536,1777746638000,-151.0,0.00011995,2]
[421481533,1777746638000,-151.0,0.00011995,2]
[421481539,1777746638000,-378.48,0.00012318,2]
[421481547,1777746638000,-420.0,0.00012936,2]
[421481546,1777746638000,-227.09,0.00012699,2]
[421481548,1777746638000,-660.03413154,0.00012959,2]
[421481549,1777746638000,-1019.96586846,0.00012959,2]
[421481543,1777746638000,-185.0,0.00012468,2]
[421481608,1777746639000,-623.14184057,0.00015197,2]
[421481616,1777746639000,-500.0,0.00015197,2]
[421481605,1777746639000,-1064.63386174,0.00015197,2]
[421481617,1777746639000,-500.0,0.00015197,2]
[421481606,1777746639000,-1064.63386174,0.00015197,2]
[421481598,1777746639000,-1064.63386174,0.00015197,2]
[421481600,1777746639000,-1064.63386174,0.00015197,2]
[421481602,1777746639000,-1064.63386174,0.00015197,2]
[421481603,1777746639000,-1064.63386174,0.00015197,2]
[421481597,1777746639000,-1064.63386174,0.00015197,2]
[421481599,1777746639000,-1064.63386174,0.00015197,2]
[421481601,1777746639000,-1064.63386174,0.00015197,2]
[421481618,1777746639000,-500.0,0.00015197,2]
[421481609,1777746639000,-500.0,0.00015197,2]
[421481614,1777746639000,-586.02663434,0.00015197,2]
[421481607,1777746639000,-1064.63386174,0.00015197,2]
[421481610,1777746639000,-500.0,0.00015197,2]
[421481613,1777746639000,-500.0,0.00015197,2]
[421481612,1777746639000,-500.0,0.00015197,2]
[421481615,1777746639000,-500.0,0.00015197,2]
[421481626,1777746639000,-500.0,0.00015197,2]
[421481625,1777746639000,-1064.63386174,0.00015197,2]
[421481621,1777746639000,-500.0,0.00015197,2]
[421481628,1777746639000,-1064.63386174,0.00015197,2]
[421481624,1777746639000,-500.0,0.00015197,2]
[421481623,1777746639000,-508.75055849,0.00015197,2]
[421481595,1777746639000,-310.47378338,0.00015197,2]
[421481611,1777746639000,-500.0,0.00015197,2]
[421481604,1777746639000,-1064.63386174,0.00015197,2]
[421481582,1777746639000,-500.0,0.00014999,2]
[421481594,1777746639000,-184.95876394,0.00015197,2]
[421481627,1777746639000,-500.0,0.00015197,2]
[421481568,1777746639000,-152.0,0.00013899,7]
[421481567,1777746639000,-500.0,0.00013896,2]
[421481569,1777746639000,-152.0,0.00013899,7]
[421481570,1777746639000,-500.0,0.0001417,2]
[421481571,1777746639000,-720.0,0.00014266,2]
[421481572,1777746639000,-200.0,0.00014472,2]
[421481580,1777746639000,-236.293,0.00014999,2]
[421481575,1777746639000,-292.2724103,0.00014756,2]
[421481578,1777746639000,-549.87138554,0.00014999,2]
[421481573,1777746639000,-158.0,0.0001474,3]
[421481579,1777746639000,-500.0,0.00014999,2]
[421481574,1777746639000,-949.9569112,0.00014756,2]
[421481577,1777746639000,-500.0,0.00014847,2]
[421481576,1777746639000,-500.0,0.00014847,2]
[421481581,1777746639000,-505.44235357,0.00014999,2]
[421481586,1777746639000,-171.813094,0.00015068,2]
[421481587,1777746639000,-364.72048306,0.00015099,2]
[421481588,1777746639000,-364.72048304,0.00015149,2]
[421481591,1777746639000,-399.73,0.0001519,3]
[421481589,1777746639000,-1598.9,0.0001519,3]
[421481590,1777746639000,-799.45,0.0001519,3]
[421481592,1777746639000,-199.86,0.0001519,3]
[421481584,1777746639000,-500.0,0.00014999,2]
[421481585,1777746639000,-10145.03252765,0.00015,2]
[421481583,1777746639000,-1048.35,0.00014999,2]
[421481593,1777746639000,-599.62,0.0001519,3]
[421481596,1777746639000,-1064.63386174,0.00015197,2]
[421481629,1777746639000,-500.0,0.00015197,2]
[421481681,1777746639000,-151.0,0.000152,2]
[421481622,1777746639000,-500.0,0.00015197,2]
[421481659,1777746639000,-1048.35,0.00015199,2]
[421481662,1777746639000,-1048.35,0.00015199,2]
[421481664,1777746639000,-1048.35,0.00015199,2]
[421481660,1777746639000,-1048.35,0.00015199,2]
[421481663,1777746639000,-1048.35,0.00015199,2]
[421481661,1777746639000,-1048.35,0.00015199,2]
[421481667,1777746639000,-1048.35,0.00015199,2]
[421481679,1777746639000,-151.0,0.000152,2]
[421481669,1777746639000,-1048.35,0.00015199,2]
[421481680,1777746639000,-151.0,0.000152,2]
[421481666,1777746639000,-1048.35,0.00015199,2]
[421481672,1777746639000,-1048.35,0.00015199,2]
[421481677,1777746639000,-151.0,0.000152,2]
[421481670,1777746639000,-1048.35,0.00015199,2]
[421481668,1777746639000,-1048.35,0.00015199,2]
[421481674,1777746639000,-364.72048304,0.00015199,2]
[421481673,1777746639000,-1048.44580934,0.00015199,2]
[421481671,1777746639000,-1048.35,0.00015199,2]
[421481675,1777746639000,-10145.03252765,0.000152,2]
[421481682,1777746639000,-151.0,0.000152,2]
[421481683,1777746639000,-151.0,0.000152,2]
[421481684,1777746639000,-151.0,0.000152,2]
[421481685,1777746639000,-151.0,0.000152,2]